bitfinex-derivatives/quotes_BNBF0:USTF0_20250406
["timestamp","ask_amount","ask_price","bid_price","bid_amount"]
[1743919286952,0.853,593.38,592.66,0.28530359]
[1743919287953,0.853,593.38,592.67,0.28529526]
[1743919288255,0.853,593.38,592.68,0.28529526]
[1743919288450,0.853,593.38,592.67,0.28529526]
[1743919290456,0.853,593.38,592.69,1.26833324]
[1743919290751,0.813,593.37,592.7,0.28529526]
[1743919291256,0.813,593.37,592.69,1.26833324]
[1743919291457,0.813,593.37,592.7,0.28522749]
[1743919292658,0.813,593.37,592.65,1.60580054]
[1743919292659,0.813,593.37,592.66,0.28522749]
[1743919292859,0.813,593.37,592.65,1.60580054]
[1743919293055,0.813,593.37,592.66,0.28518386]
[1743919294361,0.813,593.37,592.71,1.26833324]
[1743919294561,0.813,593.37,592.72,0.28518386]
[1743919296365,0.813,593.37,592.71,1.26833324]
[1743919296559,0.813,593.37,592.72,0.28517898]
[1743919297667,0.813,593.37,592.7,0.28517898]
[1743919297968,0.813,593.37,592.69,1.26833324]
[1743919298267,0.813,593.37,592.7,0.28517545]
[1743919299571,0.813,593.37,592.7,1.26833324]
[1743919299869,0.813,593.37,592.71,0.28517584]
[1743919301970,0.813,593.37,592.7,0.28517584]
[1743919302366,0.813,593.37,592.66,0.28517584]
[1743919302569,0.813,593.37,592.67,0.33745591]
[1743919302863,0.813,593.37,592.68,0.28517584]
[1743919303371,0.813,593.37,592.69,0.29332063]
[1743919303566,0.813,593.37,592.7,0.28517584]
[1743919305272,0.813,593.37,592.67,0.33745591]
[1743919305474,0.813,593.37,592.69,0.29332063]
[1743919305670,0.813,593.37,592.7,0.28517563]
[1743919306469,0.813,593.37,592.71,0.28517976]
[1743919306674,0.813,593.37,592.7,0.28517976]
[1743919307971,0.813,593.37,592.69,0.29332063]
[1743919308174,0.813,593.37,592.7,0.28520657]
[1743919308375,0.813,593.37,592.68,0.28520657]
[1743919309373,0.813,593.37,592.69,0.293333]
[1743919309577,0.813,593.37,592.7,0.28520657]
[1743919311580,0.813,593.37,592.71,0.28520657]
[1743919311780,0.813,593.37,592.68,0.28520657]
[1743919311977,0.813,593.37,592.69,0.28520657]
[1743919312181,0.813,593.37,592.68,0.28520657]
[1743919312379,0.813,593.37,592.69,0.57853957]
[1743919312578,0.813,593.37,592.7,0.28520657]
[1743919313586,0.853,593.38,592.7,0.28520657]
[1743919314481,0.853,593.38,592.71,0.28520657]
[1743919314786,0.853,593.38,592.68,0.28520657]
[1743919315587,0.853,593.38,592.69,0.29333176]
[1743919315886,0.853,593.38,592.7,0.28520657]
[1743919316486,0.753,593.37,592.7,0.28520657]
[1743919317387,0.753,593.37,592.68,0.28520657]
[1743919318487,0.753,593.37,592.69,0.293333]
[1743919318681,0.753,593.37,592.7,0.28520657]
[1743919319385,0.753,593.37,592.79,1.26833324]
[1743919319584,0.753,593.37,592.8,0.28520657]
[1743919319784,0.753,593.37,592.79,1.26833324]
[1743919319983,0.753,593.37,592.8,0.2851629]
[1743919321089,0.753,593.37,592.81,1.26833324]
[1743919321289,0.753,593.37,592.82,0.2851629]
[1743919324190,0.753,593.37,592.8,1.26833324]
[1743919324191,0.753,593.37,592.81,0.2851629]
[1743919324389,0.753,593.37,592.82,0.28517043]
[1743919324585,0.753,593.37,592.81,0.28517043]
[1743919324789,0.753,593.37,592.83,0.28517043]
[1743919324988,0.753,593.37,592.84,0.28517043]
[1743919325191,0.753,593.37,592.8,1.26833324]
[1743919325192,0.753,593.37,592.81,0.28517043]
[1743919325386,0.753,593.37,592.82,0.28517043]
[1743919325592,0.753,593.37,592.81,0.28517043]
[1743919325792,0.753,593.37,592.82,0.28517043]
[1743919327693,0.753,593.37,592.81,1.26833324]
[1743919327994,0.753,593.37,592.85,1.26833324]
[1743919328195,0.753,593.37,592.86,0.28517989]
[1743919330303,0.753,593.37,592.86,1.55351313]
[1743919330490,0.753,593.37,592.87,0.28517989]
[1743919331197,0.753,593.37,592.86,1.26833324]
[1743919331400,0.753,593.37,592.87,0.28520408]
[1743919332801,0.753,593.37,592.86,1.26833324]
[1743919333099,0.753,593.37,592.87,0.28522344]
[1743919333295,0.753,593.37,592.71,0.28522344]
[1743919333593,0.753,593.37,592.76,0.29328973]
[1743919333797,0.753,593.37,592.77,0.28522344]
[1743919334499,0.753,593.37,592.76,0.29328973]
[1743919334698,0.753,593.37,592.77,0.28534358]
[1743919335504,0.753,593.37,592.7,0.28534358]
[1743919335704,0.753,593.37,592.71,0.28534358]
[1743919336405,0.753,593.37,592.72,0.29330951]
[1743919336806,0.753,593.37,592.73,0.28534358]
[1743919337905,0.753,593.37,592.72,0.29330951]
[1743919338102,0.753,593.37,592.73,0.28537323]
[1743919338599,0.753,593.37,592.71,0.28537323]
[1743919338800,0.753,593.37,592.72,0.28537323]
[1743919339008,0.753,593.37,592.73,0.28537323]
[1743919339208,0.753,593.37,592.71,0.28537323]
[1743919339402,0.753,593.37,592.74,0.28537323]
[1743919339602,0.753,593.37,592.75,0.28537323]
[1743919339809,0.753,593.37,592.73,0.28537323]
[1743919340402,0.753,593.37,592.74,0.28537421]
[1743919340707,0.853,593.38,592.73,0.28537421]
[1743919340907,0.853,593.38,592.74,0.28537421]
[1743919341103,0.853,593.38,592.73,0.28537421]
[1743919341303,0.853,593.38,592.74,0.28537421]
[1743919341507,0.853,593.38,592.71,0.28537421]
[1743919342312,0.853,593.38,592.8,1.26833324]
[1743919342609,0.853,593.38,592.81,0.28537421]
[1743919344213,0.875,593.37,592.81,0.28537421]
[1743919344614,0.875,593.37,592.82,1.26833324]
[1743919344815,0.875,593.37,592.83,0.28537356]
[1743919347715,0.644,593.36,592.83,0.28537356]
[1743919348111,0.644,593.36,592.82,1.26833324]
[1743919348414,0.644,593.36,592.83,0.28537444]
[1743919349617,0.644,593.36,592.86,1.26833324]
[1743919349814,0.644,593.36,592.87,0.28537444]
[1743919351717,0.644,593.36,592.86,1.26833324]
[1743919351914,0.644,593.36,592.87,0.28537588]
[1743919354625,0.644,593.36,592.88,0.28537588]
[1743919354821,0.644,593.36,592.77,0.28537588]
[1743919360026,0.644,593.36,592.76,1.26833324]
[1743919360226,0.644,593.36,592.77,0.28543277]
[1743919361122,0.644,593.36,592.78,0.28543277]
[1743919361325,0.644,593.36,592.75,0.28543277]
[1743919361525,0.644,593.36,592.76,0.28543277]
[1743919361826,0.644,593.36,592.74,0.29330827]
[1743919362025,0.644,593.36,592.75,0.28541445]
[1743919363523,0.644,593.36,592.74,0.29330827]
[1743919363726,0.644,593.36,592.75,0.28542469]
[1743919365026,0.644,593.36,592.74,0.29330827]
[1743919365223,0.644,593.36,592.75,0.28542307]
[1743919365525,0.644,593.36,592.76,0.28542307]
[1743919365726,0.644,593.36,592.72,1.26833324]
[1743919365928,0.644,593.36,592.73,0.28541792]
[1743919366422,0.644,593.36,592.74,0.29331322]
[1743919366627,0.644,593.36,592.75,0.28541792]
[1743919366821,0.644,593.36,592.74,0.29331322]
[1743919367026,0.644,593.36,592.75,0.28541763]
[1743919367627,0.644,593.36,592.82,1.26833324]
[1743919367827,0.644,593.36,592.83,0.28541763]
[1743919369130,0.644,593.36,592.86,1.26833324]
[1743919369323,0.644,593.36,592.87,0.28541763]
[1743919371629,0.644,593.36,592.86,0.28541763]
[1743919373126,0.644,593.36,592.8,0.28541763]
[1743919374933,0.644,593.36,592.78,0.28541763]
[1743919375132,0.644,593.36,592.79,0.28541763]
[1743919375331,0.644,593.36,592.78,0.28541763]
[1743919375530,0.644,593.36,592.8,0.28541763]
[1743919375829,0.644,593.36,592.81,0.28541763]
[1743919376034,0.644,593.36,592.78,0.28541763]
[1743919376934,0.729,593.35,592.78,0.28541763]
[1743919377236,0.729,593.35,592.78,1.55375087]
[1743919377437,0.729,593.35,592.79,0.28541763]
[1743919380340,0.729,593.35,592.78,1.26833324]
[1743919380541,0.729,593.35,592.8,0.28572786]
[1743919380741,0.729,593.35,592.81,0.28572786]
[1743919380941,0.729,593.35,592.79,0.28572786]
[1743919381135,0.729,593.35,592.77,0.28572786]
[1743919381338,0.729,593.35,592.78,0.28572786]
[1743919381536,0.729,593.35,592.79,0.28572786]
[1743919381840,0.729,593.35,592.8,0.28572786]
[1743919382042,0.729,593.35,592.77,0.28572786]
[1743919382338,0.729,593.35,592.78,0.28572786]
[1743919382543,0.729,593.35,592.77,0.28572786]
[1743919382739,0.729,593.35,592.78,0.28572786]
[1743919382938,0.729,593.35,592.77,0.28572786]
[1743919383438,0.729,593.35,592.81,1.26833324]
[1743919383639,0.729,593.35,592.82,0.28572786]
[1743919384843,0.729,593.35,592.81,1.26833324]
[1743919385043,0.729,593.35,592.82,0.28581325]
[1743919385243,0.729,593.35,592.82,1.55414649]
[1743919385544,0.729,593.35,592.83,0.28581325]
[1743919387243,0.729,593.35,592.83,1.55414649]
[1743919387443,0.729,593.35,592.84,0.28581325]
[1743919389146,0.729,593.35,592.85,1.26833324]
[1743919389340,0.729,593.35,592.86,0.28581325]
[1743919389946,0.729,593.35,592.85,1.26833324]
[1743919390146,0.729,593.35,592.86,0.28581752]
[1743919391647,0.729,593.35,592.78,0.28581752]
[1743919392343,0.729,593.35,592.69,0.28581752]
[1743919393448,0.729,593.35,592.7,1.56164275]
[1743919393647,0.729,593.35,592.71,0.28602914]
[1743919395750,0.729,593.35,592.7,1.56164275]
[1743919395949,0.729,593.35,592.71,0.2858942]
[1743919397351,0.729,593.35,592.81,1.26833324]
[1743919397555,0.729,593.35,592.82,0.2858942]
[1743919398459,0.729,593.35,592.81,1.26833324]
[1743919398656,0.729,593.35,592.82,0.28583389]
[1743919400259,0.729,593.35,592.83,0.28583373]
[1743919400465,0.729,593.35,592.82,0.28583373]
[1743919400658,0.729,593.35,592.84,0.28583373]
[1743919400858,0.729,593.35,592.81,1.26833324]
[1743919401057,0.729,593.35,592.82,0.28584233]
[1743919401658,0.729,593.35,592.77,1.26833324]
[1743919401659,0.729,593.35,592.79,0.2932885]
[1743919401863,0.729,593.35,592.8,0.28584233]
[1743919403865,0.729,593.35,592.86,1.26833324]
[1743919404060,0.644,593.36,592.87,0.28584233]
[1743919404766,1.51491679,594.14,592.87,0.28584233]
[1743919404966,0.64635886,594.13,592.87,0.28584233]
[1743919405163,0.3097322,594.12,592.87,0.28584233]
[1743919405468,0.60291815,594.12,592.87,0.28584233]
[1743919405663,0.64637019,594.11,592.87,0.28584233]
[1743919405868,0.64637586,594.1,592.87,1.55417557]
[1743919406163,0.64638152,594.09,592.88,0.28584233]
[1743919406368,0.64638719,594.08,592.88,0.28584233]
[1743919406570,0.3097322,594.07,592.88,0.28584233]
[1743919407071,0.33666633,594.06,592.88,0.28584233]
[1743919407369,0.3097322,594.05,592.88,0.28584233]
[1743919407570,0.33667766,594.04,592.88,0.28584233]
[1743919407770,0.3097322,594.03,592.88,0.28584233]
[1743919408069,0.336689,594.02,592.88,0.28584233]
[1743919408270,0.3097322,594.01,592.88,1.55417557]
[1743919408471,0.33670033,594.0,592.89,0.28584233]
[1743919408771,0.33670033,594.0,592.88,1.26833324]
[1743919408971,0.30973231,593.99,592.89,0.28585117]
[1743919409171,0.33671167,593.98,592.89,0.28585117]
[1743919409372,0.30973231,593.97,592.89,0.28585117]
[1743919409572,0.64644965,593.97,592.89,0.28585117]
[1743919409768,0.30973231,593.96,592.89,0.28585117]
[1743919410272,0.33671734,593.97,592.88,1.26833324]
[1743919410571,0.30973248,593.96,592.89,0.28585727]
[1743919410766,0.30973248,593.96,592.89,1.55419051]
[1743919410973,0.33671734,593.97,592.89,1.26833324]
[1743919411171,0.30973248,593.96,592.9,0.28585733]
[1743919411470,0.60292461,593.96,592.9,0.28585733]
[1743919411768,0.30973248,593.95,592.9,0.28585733]
[1743919412072,0.29319213,593.96,592.89,1.26833324]
[1743919412273,0.30973264,593.95,592.9,0.28592855]
[1743919413376,0.30973264,593.96,592.9,0.28592855]
[1743919413576,0.29320325,593.94,592.9,0.28592855]
[1743919413769,0.29320325,593.94,592.89,0.28592855]
[1743919413770,0.30973264,593.93,592.89,0.28592855]
[1743919416379,0.30973264,593.96,592.89,0.28592855]
[1743919416572,0.30973264,593.95,592.89,0.28592855]
[1743919416777,0.30973264,593.96,592.89,0.28592855]
[1743919417081,0.30973264,593.95,592.89,0.28592855]
[1743919417278,0.30973264,593.96,592.89,0.28592855]
[1743919417475,0.29320325,593.95,592.89,0.28592855]
[1743919417673,0.30973264,593.94,592.89,0.28592855]
[1743919418581,0.30973264,593.94,592.88,0.28592855]
[1743919418780,0.29320325,593.95,592.87,1.26833324]
[1743919418979,0.30973231,593.94,592.88,0.28593048]
[1743919419479,0.30973231,593.93,592.88,0.28593048]
[1743919419780,0.30973231,593.92,592.88,0.28593048]
[1743919419975,0.30973231,593.96,592.88,0.28593048]
[1743919420479,0.33671734,593.97,592.87,1.26833324]
[1743919420480,0.29320448,593.95,592.87,1.26833324]
[1743919420679,0.29320448,593.95,592.88,0.28586233]
[1743919420879,0.30973232,593.94,592.88,0.28586233]
[1743919421179,0.29320448,593.95,592.87,1.26833324]
[1743919421381,0.30973218,593.94,592.88,0.28584668]
[1743919421777,0.30973218,593.94,592.81,0.28584668]
[1743919421975,0.30973218,593.94,592.82,0.28584668]
[1743919422177,0.30973218,593.94,592.81,0.28584668]
[1743919422377,0.30973218,593.94,592.82,0.28584668]
[1743919422576,0.30973218,593.96,592.8,0.28584668]
[1743919422879,0.30973218,593.95,592.81,0.28584668]
[1743919423076,0.30973218,593.96,592.8,0.28584668]
[1743919423682,0.29321436,593.95,592.82,1.26833324]
[1743919423882,0.30973218,593.94,592.83,0.28584668]
[1743919424585,0.29321436,593.95,592.83,0.28584668]
[1743919425380,0.33671734,593.97,592.83,0.28584668]
[1743919425581,0.33667766,594.04,592.83,0.28584668]
[1743919425780,0.30973107,594.03,592.83,0.28584668]
[1743919425983,0.336689,594.02,592.83,0.28584668]
[1743919426685,0.29320325,594.01,592.84,0.28584668]
[1743919426884,0.33670033,594.0,592.81,0.28584668]
[1743919427184,0.33670033,594.0,592.82,0.28584668]
[1743919427385,0.33670033,594.0,592.81,0.28584668]
[1743919427589,0.33670033,594.0,592.82,0.28584668]
[1743919427786,0.33670033,594.0,592.81,0.28584668]
[1743919427988,0.33670033,594.0,592.82,0.28584668]
[1743919428287,0.33670033,594.0,592.83,0.28584668]
[1743919428483,0.33670033,594.0,592.66,0.28584668]
[1743919428681,0.33670033,594.0,592.67,0.62330259]
[1743919428884,0.33670033,594.0,592.68,0.6232969]
[1743919429086,0.33670033,594.0,592.69,0.62329121]
[1743919429386,0.33670033,594.0,592.7,0.62328551]
[1743919429587,0.29321807,593.99,592.71,0.62327982]
[1743919429788,0.29321807,593.99,592.69,0.29321807]
[1743919429789,0.33671167,593.98,592.72,0.62327413]
[1743919430084,0.33671167,593.98,592.73,0.62326844]
[1743919430287,0.33671167,593.98,592.74,0.62326274]
[1743919430488,0.33671167,593.98,592.75,0.33741037]
[1743919430687,0.33671167,593.98,592.76,0.28583755]
[1743919432091,0.30972816,593.97,592.76,0.28583755]
[1743919432283,0.6464455,593.97,592.76,0.28583755]
[1743919432584,0.30972816,593.96,592.76,0.28583755]
[1743919433887,0.30972816,593.96,592.84,1.26833324]
[1743919434086,0.30972871,593.95,592.85,0.28584056]
[1743919434286,0.30972871,593.96,592.85,0.28584056]
[1743919434591,0.30972871,593.95,592.85,0.28584056]
[1743919434787,0.30972871,593.96,592.85,0.28584056]
[1743919435491,0.29320819,593.95,592.85,0.28584056]
[1743919435687,0.30972804,593.94,592.86,0.28583845]
[1743919435891,0.30972804,593.94,592.85,0.28583845]
[1743919436092,0.30972804,593.94,592.87,0.28583845]
[1743919436289,0.30972804,593.94,592.88,0.28583845]
[1743919436594,0.94172804,593.94,592.89,0.28583845]
[1743919436787,0.30972804,593.93,592.85,0.28583845]
[1743919437089,0.30972804,593.93,592.86,0.28583845]
[1743919437292,0.30972804,593.93,592.85,0.28583845]
[1743919437494,0.632,593.94,592.87,1.26833324]
[1743919437693,0.30973043,593.93,592.88,0.28584519]
[1743919438493,0.29320819,593.92,592.88,0.28584519]
[1743919438693,0.30973043,593.91,592.88,0.28584519]
[1743919440095,0.30973043,593.91,592.84,0.28584519]
[1743919440591,0.30973043,593.93,592.84,0.28584519]
[1743919440795,0.30973045,593.92,592.85,0.28583207]
[1743919440994,0.30973045,593.93,592.84,0.28583207]
[1743919441194,0.30973045,593.92,592.85,0.28583207]
[1743919441395,0.30973045,593.93,592.84,0.28583207]
[1743919441697,0.60294358,593.92,592.85,0.28583207]
[1743919441896,0.30973045,593.91,592.84,0.28583207]
[1743919443399,0.30973045,593.93,592.84,0.28583207]
[1743919443596,0.30973045,593.92,592.84,0.28583207]
[1743919443796,0.30973045,593.93,592.84,0.28583207]
[1743919443995,0.30973045,593.92,592.84,0.28583207]
[1743919444293,0.30973045,593.91,592.84,0.28583207]
[1743919444493,0.29321313,593.91,592.84,0.28583207]
[1743919444699,0.30973045,593.9,592.84,0.28583207]
[1743919445299,0.29321313,593.91,592.83,1.26833324]
[1743919445500,0.30972984,593.9,592.84,0.28581182]
[1743919446397,0.30972984,593.93,592.84,1.55414506]
[1743919446597,0.30972984,593.93,592.85,0.28581182]
[1743919447500,0.29321189,593.92,592.85,0.28581182]
[1743919447697,0.30972984,593.91,592.85,0.28581182]
[1743919448107,0.30972984,593.91,592.89,1.26833324]
[1743919448300,0.30972984,593.91,592.9,0.28581182]
[1743919449601,0.30972984,593.93,592.9,0.28581182]
[1743919450506,0.29320572,593.92,592.9,0.28581182]
[1743919450808,0.30972984,593.91,592.9,0.28581182]
[1743919451107,0.29320572,593.92,592.89,1.26833324]
[1743919451309,0.30973001,593.91,592.9,0.28583138]
[1743919452310,0.632,593.94,592.82,1.26833324]
[1743919452505,0.30973017,593.93,592.83,0.28583062]
[1743919453514,0.29321436,593.92,592.83,0.28583062]
[1743919453708,0.30973017,593.91,592.83,0.28583062]
[1743919453912,0.29321436,593.92,592.82,1.26833324]
[1743919454112,0.30973014,593.91,592.83,0.28582979]
[1743919455512,0.632,593.94,592.82,1.26833324]
[1743919455713,0.6029472,593.9,592.84,0.28583065]
[1743919456012,0.30973037,593.89,592.85,0.28583065]
[1743919456212,0.29321683,593.9,592.82,1.26833324]
[1743919456416,0.30973162,593.89,592.83,0.28583327]
[1743919457312,0.29321683,593.9,592.82,1.26833324]
[1743919457515,0.30973127,593.89,592.83,0.28583362]
[1743919458416,0.30973127,594.04,592.83,0.28583362]
[1743919458715,0.2932193,593.88,592.83,0.28583362]
[1743919458914,0.819,594.05,592.83,0.28583362]
[1743919459114,0.30973291,594.04,592.83,0.28583362]
[1743919459511,0.29320078,594.03,592.81,0.28583362]
[1743919459815,0.30973291,594.02,592.82,0.28583362]
[1743919460115,0.95173291,594.02,592.83,0.28583362]
[1743919460413,0.95173291,594.02,592.84,0.28583362]
[1743919460414,0.30973291,594.01,592.84,0.28583362]
[1743919460610,0.642,594.02,592.85,0.28582373]
[1743919460815,0.30973127,594.01,592.81,0.28582373]
[1743919461010,0.30973127,594.01,592.86,0.28582373]
[1743919461210,0.642,594.02,592.8,1.26833324]
[1743919461415,0.30973127,594.01,592.81,0.2858232]
[1743919461617,0.30973127,594.01,592.86,1.26833324]
[1743919461817,0.30973127,594.01,592.87,0.2858232]
[1743919462523,0.29319954,594.0,592.87,0.2858232]
[1743919462713,0.30973127,593.99,592.87,0.2858232]
[1743919463919,0.29319954,594.0,592.86,1.26833324]
[1743919464118,0.3097327,593.99,592.87,0.28582302]
[1743919464615,0.3097327,593.98,592.88,0.28582302]
[1743919464815,0.3097327,594.01,592.85,0.28582302]
[1743919465019,0.3097327,594.0,592.86,0.28582302]
[1743919465218,0.3097327,594.01,592.85,0.28582302]
[1743919465416,0.3097327,594.0,592.86,0.28582302]
[1743919465617,0.29320201,593.99,592.85,0.28582302]
[1743919465814,0.29320201,593.99,592.86,0.28582302]
[1743919466016,0.3097327,593.98,592.85,0.28582302]
[1743919466218,0.3097327,593.98,592.87,0.28582302]
[1743919466421,0.3097327,593.98,592.88,0.28582302]
[1743919466620,0.3097327,593.98,592.85,1.55415626]
[1743919466818,0.3097327,593.98,592.86,0.28582302]
[1743919467523,0.3097327,593.97,592.86,0.28582302]
[1743919467716,0.3097327,594.01,592.86,0.28582302]
[1743919468525,0.29320078,594.0,592.86,0.28582302]
[1743919468718,0.3097327,593.99,592.86,0.28582302]
[1743919469123,0.3097327,593.99,592.88,1.26833324]
[1743919469320,0.3097327,593.99,592.89,0.28582302]
[1743919469519,0.33671167,593.98,592.89,0.28582302]
[1743919469724,0.3097327,593.97,592.89,0.28582302]
[1743919469922,0.33672301,593.96,592.89,0.28582302]
[1743919470119,0.3097327,593.95,592.89,0.28582302]
[1743919470528,1.2857327,593.95,592.89,0.28582302]
[1743919470724,0.30973277,593.94,592.9,0.28582924]
[1743919470926,0.30973277,593.94,592.89,0.28582924]
[1743919471125,0.30973277,593.94,592.91,0.28582924]
[1743919471324,0.30973277,593.94,592.92,0.28582924]
[1743919471624,0.29320572,593.93,592.93,0.28582924]
[1743919471820,0.30973277,593.92,592.89,1.55416248]
[1743919472124,0.30973277,593.92,592.9,0.28582924]
[1743919472422,0.29320572,593.93,592.89,1.26833324]
[1743919472725,0.30973247,593.92,592.9,0.28582911]
[1743919475327,0.29320572,593.93,592.89,1.26833324]
[1743919476227,0.976,593.95,592.89,1.26833324]
[1743919477529,0.29320448,593.94,592.8,0.29320448]
[1743919477731,0.29320448,593.94,592.81,0.28582117]
[1743919479131,0.29320448,593.94,592.8,0.29320448]
[1743919479332,0.976,593.95,592.81,0.28581568]
[1743919479631,0.976,593.95,592.82,0.28581568]
[1743919479826,0.976,593.95,592.67,1.26833324]
[1743919479827,0.976,593.95,592.68,0.28581568]
[1743919480032,0.976,593.95,592.69,0.62326021]
[1743919480228,0.976,593.95,592.7,0.62325451]
[1743919480427,0.976,593.95,592.71,0.28581568]
[1743919480631,0.29322919,593.94,592.71,0.62324882]
[1743919480831,0.29322919,593.94,592.72,0.62324313]
[1743919481132,0.29322919,593.94,592.73,0.28581568]
[1743919481326,0.29322919,593.94,592.73,0.62323744]
[1743919481532,0.29322919,593.94,592.74,0.28581568]
[1743919481731,0.29322919,593.94,592.74,0.62323174]
[1743919481931,0.29322919,593.94,592.75,0.28581568]
[1743919482228,0.976,593.95,592.75,0.28581568]
[1743919483033,0.30972841,593.94,592.75,0.28581568]
[1743919483432,0.976,593.95,592.75,0.28581568]
[1743919483629,0.29322301,593.93,592.75,0.28581568]
[1743919485231,0.976,593.95,592.75,0.28581568]
[1743919485834,0.976,593.95,592.74,0.33741606]
[1743919486031,0.976,593.95,592.75,0.2857578]
[1743919486536,0.29322301,593.94,592.75,0.2857578]
[1743919487733,0.29322301,593.94,592.74,0.63063907]
[1743919487935,0.29322301,593.94,592.75,0.28575792]
[1743919488239,0.976,593.95,592.75,0.28575792]
[1743919489239,0.976,593.95,592.74,0.33741606]
[1743919489538,0.29322301,593.94,592.75,0.28575507]
[1743919491238,1.683,593.95,592.75,0.28575507]
[1743919492537,0.29322301,593.94,592.75,0.28575507]
[1743919492737,0.29322301,593.94,592.74,0.63063907]
[1743919493040,0.29322301,593.94,592.75,0.28576801]
[1743919493241,0.30971283,593.93,592.75,0.28576801]
[1743919494443,0.30971283,593.94,592.75,0.28576801]
[1743919494843,0.30971283,593.94,592.78,1.26833324]
[1743919495043,0.30971283,593.94,592.79,0.28576801]
[1743919495544,0.29321807,593.93,592.79,0.28576801]
[1743919495945,0.29321807,593.93,592.78,1.26833324]
[1743919496139,0.29321807,593.93,592.8,0.28575069]
[1743919496343,0.29321807,593.93,592.81,0.28575069]
[1743919496542,0.29321807,593.93,592.79,0.28575069]
[1743919496742,0.29321807,593.93,592.8,0.28575069]
[1743919496943,0.787,593.92,592.81,0.28575069]
[1743919497142,0.787,593.92,592.78,0.28575069]
[1743919497343,0.787,593.92,592.79,0.28575069]
[1743919497539,0.787,593.92,592.8,0.28575069]
[1743919497745,0.787,593.92,592.78,0.28575069]
[1743919498542,0.29322301,593.91,592.78,0.28575069]
[1743919499451,0.29322301,593.91,592.79,0.28564808]
[1743919499645,0.29322301,593.91,592.78,0.28564808]
[1743919499845,0.29322301,593.91,592.79,0.28564808]
[1743919500046,0.29322301,593.91,592.78,0.28564808]
[1743919500246,0.787,593.92,592.79,0.28564808]
[1743919500450,0.787,593.92,592.76,0.28564808]
[1743919500650,0.787,593.92,592.77,0.28564808]
[1743919500953,0.787,593.92,592.78,0.28564808]
[1743919501253,0.787,593.92,592.79,0.28564808]
[1743919501453,0.787,593.92,592.76,0.28564808]
[1743919501653,0.29322548,593.91,592.8,0.28564808]
[1743919501846,0.29322548,593.91,592.81,0.28564808]
[1743919502050,0.29322548,593.91,592.78,0.28564808]
[1743919502248,0.29322548,593.91,592.77,0.29322548]
[1743919502449,0.29322548,593.91,592.78,0.28566092]
[1743919503253,0.787,593.92,592.78,0.28566092]
[1743919503452,0.787,593.92,592.77,0.28566092]
[1743919503755,0.787,593.92,592.78,0.28566092]
[1743919503947,0.787,593.92,592.77,1.26833324]
[1743919504153,0.787,593.92,592.78,0.28566664]
[1743919504555,0.29322301,593.91,592.78,0.28566664]
[1743919505552,0.29322301,593.91,592.77,1.56155625]
[1743919505757,0.30971144,593.9,592.78,0.28565933]
[1743919505957,0.30971144,593.9,592.78,1.55399257]
[1743919506256,0.30971144,593.9,592.79,0.28565933]
[1743919507357,0.30971144,593.9,592.83,1.26833324]
[1743919507657,0.30971144,593.9,592.84,0.28565933]
[1743919508357,0.29322301,593.91,592.84,0.28565933]
[1743919508956,0.29322301,593.91,592.83,1.26833324]
[1743919509158,0.29322301,593.91,592.84,0.28563985]
[1743919509356,0.787,593.92,592.84,0.28563985]
[1743919509763,0.787,593.92,592.82,0.28563985]
[1743919510660,0.29321807,593.91,592.83,0.28563003]
[1743919510859,0.29321807,593.91,592.84,0.28563003]
[1743919511064,0.29321807,593.91,592.82,0.28563003]
[1743919512278,0.787,593.92,592.82,0.28563003]
[1743919512471,0.787,593.92,592.83,0.28567188]
[1743919512664,0.29321807,593.9,592.82,0.28567188]
[1743919513371,0.29321807,593.9,592.83,0.28567188]
[1743919513566,0.29321807,593.9,592.81,0.28567188]
[1743919513762,0.581,593.89,592.82,0.28567188]
[1743919513967,0.581,593.89,592.8,0.29321807]
[1743919514169,0.581,593.89,592.81,0.28565112]
[1743919515467,0.581,593.89,592.75,0.28565112]
[1743919515668,0.581,593.89,592.76,0.28565112]
[1743919515863,0.33677404,593.87,592.72,1.26833324]
[1743919516168,0.30977966,593.86,592.72,1.26833324]
[1743919516368,0.33678538,593.85,592.72,1.26833324]
[1743919516566,0.30977966,593.84,592.72,1.26833324]
[1743919516766,0.33679672,593.83,592.56,0.29329838]
[1743919517068,0.30977966,593.82,592.56,0.29329838]
[1743919517269,0.33680806,593.81,592.56,0.29329838]